bitfinex/quotes_BTCUSD_20241004
["timestamp","ask_amount","ask_price","bid_price","bid_amount"]
[1728054663413,0.22287764,61914.0,61913.0,0.009]
[1728054663879,0.22287764,61914.0,61913.0,0.002]
[1728054664091,0.22287764,61914.0,61913.0,0.003]
[1728054664092,0.22487764,61914.0,61913.0,0.003]
[1728054664346,0.06136364,61914.0,61901.0,0.323091]
[1728054664574,0.06136364,61914.0,61902.0,0.161545]
[1728054664575,0.323055,61909.0,61902.0,0.161545]
[1728054664789,0.323055,61909.0,61903.0,0.161542]
[1728054664790,0.161533,61907.0,61903.0,0.161542]
[1728054665067,0.12533736,61913.0,61900.0,0.16155]
[1728054665068,0.161541,61904.0,61900.0,0.16155]
[1728054665326,0.161541,61904.0,61896.0,0.001638]
[1728054665327,0.161548,61901.0,61897.0,0.161558]
[1728054665607,0.42806319,61904.0,61896.0,0.001638]
[1728054665608,0.161558,61897.0,61896.0,0.001638]
[1728054666070,0.161558,61897.0,61862.0,0.07220652]
[1728054666071,0.32315,61891.0,61881.0,0.323198]
[1728054666293,0.01025587,61897.0,61886.0,0.24543893]
[1728054666295,0.42806319,61895.0,61886.0,0.24543893]
[1728054666517,0.42806319,61895.0,61861.0,0.50716319]
[1728054666518,0.0102042,61890.0,61889.0,0.161578]
[1728054666739,0.0972,61900.0,61872.0,0.78372819]
[1728054667011,0.24543893,61895.0,61889.0,0.323154]
[1728054667270,0.24543893,61895.0,61873.0,0.24543893]
[1728054667271,0.161584,61888.0,61873.0,0.24543893]
[1728054667506,0.0902,61881.0,61880.0,0.24543893]
[1728054667766,0.0902,61881.0,61873.0,0.24543893]
[1728054667767,0.0902,61881.0,61866.0,0.24543893]
[1728054667768,0.161608,61878.0,61866.0,0.24543893]
[1728054667990,0.0902,61881.0,61880.0,0.161603]
[1728054667991,0.10041729,61881.0,61880.0,0.161603]
[1728054668248,0.10041729,61881.0,61867.0,0.02454389]
[1728054668471,0.10041729,61881.0,61871.0,0.323252]
[1728054668689,0.10041729,61881.0,61858.0,0.24543893]
[1728054668690,0.2805679,61877.0,61858.0,0.24543893]
[1728054668918,0.2805679,61877.0,61869.0,0.323258]
[1728054669184,0.33339416,61876.0,61862.0,0.3233]
[1728054669474,0.01016616,61876.0,61875.0,0.161616]
[1728054669984,0.0902,61881.0,61863.0,0.355712]
[1728054670210,0.24543893,61879.0,61865.0,0.24543893]
[1728054670467,0.0902,61881.0,61879.0,0.161605]
[1728054670720,0.0902,61881.0,61865.0,0.24543893]
[1728054670721,0.33563893,61881.0,61880.0,0.163603]
[1728054670977,0.24543893,61888.0,61886.0,0.161586]
[1728054671243,0.02533808,61881.0,61872.0,0.0042214]
[1728054671502,0.323153,61891.0,61885.0,0.161588]
[1728054671755,0.24543893,61886.0,61885.0,0.16159]
[1728054672028,0.323144,61892.0,61879.0,0.32321]
[1728054672029,0.1759,61893.0,61883.0,0.161594]
[1728054672257,0.161585,61887.0,61884.0,0.161591]
[1728054672499,0.02533599,61890.0,61871.0,0.323252]
[1728054672744,0.02533599,61890.0,61878.0,0.323212]
[1728054672978,0.24543893,61888.0,61883.0,0.161594]
[1728054673217,0.33326394,61887.0,61882.0,0.161597]
[1728054673477,0.33326394,61887.0,61879.0,0.323211]
[1728054673478,0.01009194,61887.0,61884.0,0.004]
[1728054673701,0.01009194,61887.0,61886.0,0.161587]
[1728054673921,0.02533599,61890.0,61889.0,0.161579]
[1728054674383,0.03551304,61890.0,61889.0,0.161579]
[1728054674866,0.02533599,61890.0,61888.0,0.161581]
[1728054675127,0.02533599,61890.0,61887.0,0.323169]
[1728054675374,0.02533599,61890.0,61889.0,0.161579]
[1728054677426,0.02533599,61890.0,61867.0,0.0812]
[1728054677692,0.02533599,61890.0,61889.0,0.166579]
[1728054677893,0.02533599,61890.0,61889.0,0.168217]
[1728054678560,0.02533599,61890.0,61889.0,0.163217]
[1728054678784,0.02533599,61890.0,61889.0,0.001638]
[1728054679023,0.02533599,61890.0,61889.0,0.169217]
[1728054679515,0.02533599,61890.0,61889.0,0.167217]
[1728054679778,0.02533599,61890.0,61889.0,0.168217]
[1728054681374,0.02533599,61890.0,61889.0,0.172217]
[1728054681597,0.02533599,61890.0,61889.0,0.006638]
[1728054681823,0.02533599,61890.0,61889.0,0.168217]
[1728054682077,0.02533599,61890.0,61889.0,0.172217]
[1728054682325,0.02533599,61890.0,61889.0,0.163217]
[1728054682560,0.02533599,61890.0,61889.0,0.172217]
[1728054682795,0.02533599,61890.0,61889.0,0.168217]
[1728054683040,0.02533599,61890.0,61889.0,0.163217]
[1728054683329,0.46747989,61890.0,61889.0,0.007638]
[1728054683792,0.31430242,61890.0,61889.0,0.007638]
[1728054683987,0.47587842,61890.0,61889.0,0.007638]
[1728054684202,0.47587842,61890.0,61889.0,0.011638]
[1728054684420,0.47587842,61890.0,61889.0,0.007638]
[1728054684638,0.31430242,61890.0,61889.0,0.007638]
[1728054684883,0.03673452,61890.0,61889.0,0.169217]
[1728054685107,0.03373452,61890.0,61889.0,0.169217]
[1728054685327,0.02833599,61890.0,61889.0,0.169217]
[1728054685565,0.02533599,61890.0,61889.0,0.169217]
[1728054685786,0.03367652,61890.0,61889.0,0.007638]
[1728054686011,0.18991199,61890.0,61889.0,0.007638]
[1728054686247,0.18991199,61890.0,61889.0,0.001638]
[1728054686459,0.19091199,61890.0,61889.0,0.001638]
[1728054686897,0.18991199,61890.0,61889.0,0.001638]
[1728054687484,0.162576,61890.0,61889.0,0.001638]
[1728054687701,0.161576,61890.0,61889.0,0.002638]
[1728054687953,0.4421439,61890.0,61889.0,0.001638]
[1728054688191,0.2845679,61890.0,61889.0,0.001638]
[1728054688418,0.4461439,61890.0,61889.0,0.001638]
[1728054688635,0.004,61890.0,61889.0,0.001638]
[1728054688894,0.004,61890.0,61889.0,0.163217]
[1728054689108,0.004,61890.0,61889.0,0.001638]
[1728054689347,0.004,61890.0,61889.0,0.163217]
[1728054689596,0.165576,61890.0,61889.0,0.001638]
[1728054689804,0.004,61890.0,61889.0,0.001638]
[1728054690067,0.165576,61890.0,61889.0,0.001638]
[1728054690500,0.4461439,61890.0,61889.0,0.001638]
[1728054690712,0.47148028,61890.0,61889.0,0.001638]
[1728054691164,0.02933638,61890.0,61889.0,0.001638]
[1728054691680,0.02933638,61890.0,61889.0,0.242317]
[1728054691933,0.02933638,61890.0,61889.0,0.43792371]
[1728054692204,0.24543893,61902.0,61901.0,0.161548]
[1728054692417,0.24543893,61902.0,61901.0,0.60530261]
[1728054692646,0.24543893,61902.0,61901.0,0.60730261]
[1728054692900,0.24543893,61910.0,61909.0,0.161527]
[1728054693590,0.00082,61927.0,61913.0,0.161516]
[1728054695173,0.24543893,61925.0,61913.0,0.242716]
[1728054695399,0.24543893,61925.0,61913.0,0.256716]
[1728054695624,0.24543893,61925.0,61913.0,0.242716]
[1728054696768,0.24543893,61925.0,61913.0,0.256716]
[1728054697252,0.24543893,61925.0,61913.0,0.175516]
[1728054697502,0.24543893,61925.0,61913.0,0.188516]
[1728054697714,0.24543893,61925.0,61913.0,0.175516]
[1728054698189,0.24543893,61925.0,61913.0,0.189516]
[1728054698858,0.2805679,61922.0,61913.0,0.189516]
[1728054699078,0.6035569,61922.0,61913.0,0.189516]
[1728054699329,0.24543893,61924.0,61913.0,0.189516]
[1728054699564,0.2805679,61918.0,61913.0,0.189516]
[1728054700009,0.4143,61920.0,61913.0,0.028]
[1728054700293,0.161703,61919.0,61913.0,0.175516]
[1728054700532,0.161703,61919.0,61910.0,0.323045]
[1728054700533,0.05146531,61914.0,61912.0,0.161518]
[1728054700745,0.05146531,61914.0,61913.0,0.008]
[1728054700932,0.05146531,61914.0,61913.0,0.169516]
[1728054701188,0.05146531,61914.0,61913.0,0.176516]
[1728054701415,0.05146531,61914.0,61913.0,0.169516]
[1728054701662,0.05246531,61914.0,61913.0,0.169516]
[1728054701915,0.05146531,61914.0,61913.0,0.169516]
[1728054702122,0.05146531,61914.0,61913.0,0.161516]
[1728054702338,0.05146531,61914.0,61913.0,0.168516]
[1728054702577,0.05146531,61914.0,61913.0,0.176516]
[1728054705432,0.02614101,61914.0,61913.0,0.176516]
[1728054707107,0.05146397,61914.0,61913.0,0.176516]
[1728054707550,0.05146397,61914.0,61913.0,0.169516]
[1728054707757,0.05146397,61914.0,61913.0,0.174516]
[1728054708207,0.05146397,61914.0,61913.0,0.169516]
[1728054708429,0.05146397,61914.0,61913.0,0.176516]
[1728054708430,0.05246397,61914.0,61913.0,0.176516]
[1728054708636,0.05246397,61914.0,61913.0,0.169516]
[1728054708637,0.05146397,61914.0,61913.0,0.169516]
[1728054709119,0.05146397,61914.0,61913.0,0.170516]
[1728054709564,0.05146397,61914.0,61913.0,0.162516]
[1728054709783,0.10146397,61914.0,61913.0,0.162516]
[1728054709972,0.10146397,61914.0,61913.0,0.168516]
[1728054710531,0.10146397,61914.0,61913.0,0.162516]
[1728054710735,0.10146397,61914.0,61913.0,0.167516]
[1728054711226,0.10146397,61914.0,61913.0,0.169516]
[1728054711451,0.10146397,61914.0,61913.0,0.167516]
[1728054711907,0.10246397,61914.0,61913.0,0.174516]
[1728054712124,0.10246397,61914.0,61913.0,0.168516]
[1728054712340,0.10246397,61914.0,61913.0,0.175516]
[1728054712564,0.10146397,61914.0,61913.0,0.168516]
[1728054713056,0.10146397,61914.0,61913.0,0.161516]
[1728054713271,0.10146397,61914.0,61913.0,0.174516]
[1728054713969,0.10146397,61914.0,61913.0,0.161516]
[1728054714179,0.10146397,61914.0,61913.0,0.171516]
[1728054714632,0.10246397,61914.0,61913.0,0.181516]
[1728054714872,0.10146397,61914.0,61913.0,0.171516]
[1728054715092,0.10096397,61914.0,61913.0,0.171516]
[1728054715305,0.10196397,61914.0,61913.0,0.171516]
[1728054715566,0.10196397,61914.0,61913.0,0.161516]
[1728054715788,0.10296397,61914.0,61913.0,0.181516]
[1728054716029,0.10296397,61914.0,61913.0,0.02]
[1728054716030,0.19661464,61914.0,61913.0,0.02]
[1728054716275,0.19661464,61914.0,61913.0,0.01]
[1728054716514,0.19661464,61914.0,61913.0,0.02]
[1728054716756,0.35812864,61914.0,61913.0,0.02]
[1728054717465,0.43972864,61914.0,61913.0,0.02]
[1728054718582,0.43972864,61914.0,61903.0,0.323082]
[1728054718583,0.27821464,61914.0,61903.0,0.323082]
[1728054718816,0.27821464,61914.0,61906.0,0.161534]
[1728054718817,0.323046,61911.0,61906.0,0.161534]
[1728054719029,0.161524,61910.0,61907.0,0.16153]
[1728054719215,0.323042,61912.0,61883.0,0.32319]
[1728054719529,0.2805679,61910.0,61895.0,0.03242]
[1728054719614,0.3627396,61911.0,61899.0,0.161551]
[1728054719615,0.323082,61904.0,61899.0,0.161551]
[1728054719824,0.323082,61904.0,61888.0,0.27785893]
[1728054719825,0.323082,61904.0,61895.0,0.323125]
[1728054720023,0.2805679,61905.0,61899.0,0.16155]
[1728054720230,0.21220508,61903.0,61899.0,0.16155]
[1728054720439,0.05066208,61903.0,61901.0,0.161545]
[1728054720654,0.05066208,61903.0,61899.0,0.323104]
[1728054720843,0.05066208,61903.0,61897.0,0.323116]
[1728054721064,0.05066208,61903.0,61892.0,0.323142]
[1728054721065,0.05066208,61903.0,61902.0,0.161545]
[1728054721670,0.02533176,61903.0,61902.0,0.161545]
[1728054722357,0.02533176,61903.0,61902.0,0.165545]
[1728054723499,0.02533176,61903.0,61902.0,0.168545]
[1728054724229,0.02533176,61903.0,61902.0,0.33373171]
[1728054724469,0.02533176,61903.0,61902.0,0.46255171]
[1728054725127,0.02533176,61903.0,61902.0,0.290365]
[1728054725416,0.02533176,61903.0,61902.0,0.193965]
[1728054725918,0.02533176,61903.0,61902.0,0.199965]
[1728054726382,0.02533176,61903.0,61902.0,0.193965]
[1728054726604,0.02533176,61903.0,61902.0,0.212965]
[1728054726843,0.02533176,61903.0,61902.0,0.209603]
[1728054727339,0.02533176,61903.0,61902.0,0.223603]
[1728054727571,0.02533176,61903.0,61902.0,0.209603]
[1728054728018,0.02533176,61903.0,61902.0,0.21385626]
[1728054728243,0.02533176,61903.0,61902.0,0.22785626]
[1728054728823,0.02533176,61903.0,61902.0,0.223603]
[1728054730813,0.02533176,61903.0,61902.0,0.191183]
[1728054730814,0.11833176,61903.0,61902.0,0.191183]
[1728054731040,0.02533176,61903.0,61902.0,0.191183]
[1728054731514,0.05066018,61903.0,61902.0,0.191183]
[1728054731744,0.05066018,61903.0,61902.0,0.177183]
[1728054731970,0.05066018,61903.0,61902.0,0.183183]
[1728054732644,0.05066018,61903.0,61902.0,0.177183]
[1728054732865,0.05066018,61903.0,61902.0,0.189183]
[1728054733303,0.05066018,61903.0,61902.0,0.175183]
[1728054733991,0.05166018,61903.0,61902.0,0.186183]
[1728054734220,0.05166018,61903.0,61902.0,0.174183]
[1728054734427,0.05066018,61903.0,61902.0,0.163183]
[1728054734638,0.05166018,61903.0,61902.0,0.188183]
[1728054735089,0.05166018,61903.0,61902.0,0.18134646]
[1728054735557,0.05166018,61903.0,61902.0,0.19334646]
[1728054735782,0.05066018,61903.0,61902.0,0.17934646]
[1728054736014,0.05066018,61903.0,61902.0,0.16734646]
[1728054736479,0.05166018,61903.0,61902.0,0.17934646]
[1728054737125,0.05066018,61903.0,61902.0,0.16734646]
[1728054737347,0.05066018,61903.0,61902.0,0.18134646]
[1728054737582,0.05166018,61903.0,61902.0,0.18134646]
[1728054737809,0.05166018,61903.0,61902.0,0.19534646]
[1728054741541,0.05166018,61903.0,61902.0,0.38208601]
[1728054742918,0.05166018,61903.0,61902.0,0.19534646]
[1728054747053,0.05166018,61903.0,61902.0,0.38208601]
[1728054750790,0.05166018,61903.0,61902.0,0.64527272]
[1728054751040,0.001,61903.0,61902.0,0.64527272]
[1728054751271,0.001,61903.0,61902.0,0.69372621]
[1728054751480,0.001,61903.0,61902.0,0.5305395]
[1728054751695,0.001,61903.0,61902.0,0.19534646]
[1728054751966,0.002,61895.0,61883.0,0.00410969]
[1728054752244,0.002,61895.0,61872.0,0.12112535]
[1728054752245,0.023,61882.0,61864.0,0.24543893]
[1728054752494,0.34837855,61867.0,61864.0,0.24543893]
[1728054752734,0.18673955,61867.0,61864.0,0.24543893]
[1728054752953,0.161642,61865.0,61864.0,0.24543893]
[1728054753916,0.02725388,61866.0,61864.0,0.24543893]
[1728054754156,0.01362861,61865.0,61864.0,0.24543893]
[1728054754385,0.01362861,61865.0,61864.0,0.52612973]
[1728054754844,0.038972,61865.0,61864.0,0.52612973]
[1728054755077,0.02634339,61865.0,61864.0,0.68777373]
[1728054755491,0.02534339,61865.0,61864.0,0.68777373]
[1728054755725,0.02834339,61865.0,61864.0,0.70077373]
[1728054755974,0.003,61865.0,61864.0,0.70077373]
[1728054756222,0.05468147,61865.0,61864.0,0.54812973]
[1728054756433,0.05468147,61865.0,61864.0,0.70977373]
[1728054756891,0.05468147,61865.0,61864.0,0.3026908]
[1728054757829,0.05468147,61865.0,61864.0,0.2896908]
[1728054758033,0.05568147,61865.0,61864.0,0.4643348]
[1728054758503,0.05468147,61865.0,61864.0,0.4513348]
[1728054758742,0.05468147,61865.0,61864.0,0.4423348]
[1728054758743,0.05068147,61865.0,61864.0,0.4423348]
[1728054758981,0.05268147,61865.0,61864.0,0.4553348]
[1728054759198,0.05268147,61865.0,61864.0,0.2816908]
[1728054759418,0.05268147,61865.0,61864.0,0.001]
[1728054759638,0.05368147,61865.0,61864.0,0.174644]
[1728054759869,0.05168147,61865.0,61864.0,0.16673563]
[1728054760116,0.05168147,61865.0,61864.0,0.01809163]
[1728054760360,0.05168147,61865.0,61864.0,0.00409163]
[1728054760606,0.05368147,61865.0,61864.0,0.021]
[1728054760819,0.05368147,61865.0,61864.0,0.42808293]
[1728054761040,0.05268147,61865.0,61864.0,0.41408293]
[1728054761262,0.05368147,61865.0,61864.0,0.42808293]
[1728054762193,0.05168147,61865.0,61864.0,0.42108293]
[1728054762416,0.05268147,61865.0,61864.0,0.43508293]
[1728054762634,0.05268147,61865.0,61864.0,0.42108293]
[1728054763517,0.05268147,61865.0,61864.0,0.43672293]
[1728054764473,0.05268147,61865.0,61864.0,0.27507893]
[1728054764711,0.05268147,61865.0,61864.0,0.43672293]
[1728054765148,0.05268147,61865.0,61864.0,0.02964]
[1728054765584,0.05268147,61865.0,61864.0,0.27507893]
[1728054765797,0.05268147,61865.0,61864.0,0.43672293]
[1728054768638,0.05268147,61865.0,61864.0,0.02964]
[1728054770210,0.49501427,61865.0,61864.0,0.02964]
[1728054770450,0.3920337,61865.0,61864.0,0.02964]
[1728054770679,0.50855628,61865.0,61864.0,0.02964]
[1728054771390,0.50755628,61865.0,61864.0,0.01564]
[1728054771631,0.50855628,61865.0,61864.0,0.01564]
[1728054771844,0.50855628,61865.0,61864.0,0.00164]
[1728054772128,0.51155628,61865.0,61864.0,0.00164]
[1728054773285,0.51155405,61865.0,61864.0,0.00164]
[1728054775311,0.023,61864.0,61856.0,0.24543893]
[1728054775570,0.34887787,61857.0,61856.0,0.24543893]
[1728054775808,0.36241765,61857.0,61856.0,0.24543893]
[1728054776031,0.34887787,61857.0,61856.0,0.24543893]
[1728054776256,0.34887787,61857.0,61849.0,0.24707893]
[1728054776257,0.161681,61850.0,61849.0,0.24707893]
[1728054776474,0.18721487,61850.0,61849.0,0.24707893]
[1728054776919,0.098,61856.0,61849.0,0.24707893]
[1728054777204,0.009,61864.0,61849.0,0.24707893]
[1728054777205,0.01352574,61855.0,61854.0,0.161671]
[1728054777438,0.03887421,61855.0,61854.0,0.161671]
[1728054777871,0.02534847,61855.0,61854.0,0.161671]
[1728054778112,0.03887905,61855.0,61854.0,0.161671]
[1728054778751,0.03887905,61855.0,61854.0,0.166671]
[1728054779247,0.03887905,61855.0,61852.0,0.323348]
[1728054779248,0.03887905,61855.0,61853.0,0.161673]
[1728054779477,0.03887905,61855.0,61854.0,0.161671]
[1728054779478,0.02934847,61855.0,61854.0,0.161671]
[1728054779741,0.02534847,61855.0,61854.0,0.161671]
[1728054779961,0.0389145,61855.0,61854.0,0.161671]
[1728054780180,0.0399145,61855.0,61854.0,0.168671]
[1728054781095,0.02634847,61855.0,61854.0,0.168671]
[1728054781531,0.02634847,61855.0,61854.0,0.174671]
[1728054781778,0.02634847,61855.0,61854.0,0.168671]
[1728054782244,0.02734847,61855.0,61854.0,0.182671]
[1728054782953,0.02534847,61855.0,61854.0,0.161671]
[1728054783175,0.03997109,61855.0,61854.0,0.17277168]
[1728054783614,0.03997109,61855.0,61854.0,0.16577168]
[1728054783615,0.03897109,61855.0,61854.0,0.16577168]
[1728054783851,0.02534847,61855.0,61854.0,0.16577168]
[1728054784069,0.03997038,61855.0,61854.0,0.17977168]
[1728054784307,0.03997056,61855.0,61854.0,0.17977168]
[1728054784535,0.02534027,61865.0,61854.0,0.17977168]
[1728054784536,0.02534027,61865.0,61864.0,0.161644]
[1728054784766,0.02534027,61865.0,61864.0,0.34885887]
[1728054784983,0.02534027,61865.0,61864.0,0.35085887]
[1728054785212,0.02541027,61865.0,61864.0,0.34885887]
[1728054785681,0.02541027,61865.0,61864.0,0.161644]
[1728054786119,0.02641027,61865.0,61864.0,0.175644]
[1728054786331,0.02641027,61865.0,61864.0,0.179644]
[1728054786569,0.02641027,61865.0,61864.0,0.018]
[1728054786805,0.02641027,61865.0,61864.0,0.014]
[1728054787258,0.18805227,61865.0,61864.0,0.004]
[1728054787554,0.18705227,61865.0,61864.0,0.004]
[1728054787784,0.02541027,61865.0,61864.0,0.008]
[1728054787996,0.02541027,61865.0,61864.0,0.004]
[1728054788425,0.18705227,61865.0,61864.0,0.005]
[1728054788637,0.20771665,61865.0,61864.0,0.004]
[1728054788869,0.02541027,61865.0,61864.0,0.004]
[1728054789543,0.02541027,61865.0,61859.0,0.161657]
[1728054789544,0.18705227,61865.0,61859.0,0.161657]
[1728054789768,0.18705227,61865.0,61856.0,0.56876493]
[1728054789769,0.02541027,61865.0,61863.0,0.24543893]
[1728054790026,0.02541027,61865.0,61856.0,0.56876493]
[1728054790027,0.02541027,61865.0,61856.0,0.56876893]
[1728054790256,0.323295,61863.0,61856.0,0.24543893]
[1728054790482,0.161653,61861.0,61856.0,0.24543893]
[1728054790698,0.03487053,61862.0,61856.0,0.24543893]
[1728054791114,0.03487053,61862.0,61854.0,0.001642]
[1728054791115,0.0994,61859.0,61854.0,0.001642]
[1728054791347,0.242662,61858.0,61854.0,0.001642]
[1728054791603,0.161668,61855.0,61854.0,0.001642]
[1728054791838,0.161666,61856.0,61854.0,0.001642]
[1728054792076,0.161668,61855.0,61854.0,0.001642]
[1728054792569,0.161681,61850.0,61849.0,0.00164]
[1728054792815,0.44233832,61850.0,61849.0,0.00164]
[1728054793276,0.46769161,61850.0,61849.0,0.00164]
[1728054793501,0.62117447,61850.0,61849.0,0.00164]
[1728054794128,0.71627447,61850.0,61849.0,0.00164]
[1728054794593,0.71627447,61850.0,61846.0,0.001638]
[1728054794594,0.163689,61847.0,61846.0,0.001638]
[1728054794848,0.186689,61847.0,61846.0,0.001638]
[1728054795144,0.44497571,61847.0,61846.0,0.001638]
[1728054795424,0.44497571,61847.0,61835.0,0.24543893]
[1728054795425,0.337005,61841.0,61835.0,0.24543893]
[1728054795648,0.61766232,61841.0,61835.0,0.24543893]
[1728054795884,0.161718,61836.0,61835.0,0.24543893]
[1728054796106,0.18472,61835.0,61834.0,0.0045769]
[1728054796393,0.16172,61835.0,61834.0,0.003588]
[1728054796628,0.17520823,61835.0,61834.0,0.003588]
[1728054797293,0.17520823,61835.0,61827.0,0.001638]
[1728054797294,0.161739,61828.0,61827.0,0.001638]
[1728054797524,0.17522723,61828.0,61827.0,0.001638]
[1728054797768,0.34592723,61828.0,61827.0,0.001638]
[1728054798030,0.12016192,61828.0,61827.0,0.001638]
[1728054798273,0.0948,61828.0,61827.0,0.001638]
[1728054798504,0.1082506,61828.0,61827.0,0.001638]
[1728054798957,0.1082506,61828.0,61827.0,0.163379]
[1728054798958,0.0134506,61828.0,61827.0,0.163379]
[1728054799203,0.0134506,61828.0,61827.0,0.246079]
[1728054799442,0.006,61835.0,61834.0,0.161723]
[1728054799915,0.006,61835.0,61827.0,0.085338]
[1728054799916,0.006,61835.0,61827.0,0.002638]
[1728054800148,0.01343858,61834.0,61827.0,0.002638]
[1728054800370,0.161739,61828.0,61827.0,0.002638]
[1728054800594,0.22369728,61828.0,61827.0,0.002638]
[1728054800837,0.22369728,61828.0,61827.0,0.001638]
[1728054801048,0.22469728,61828.0,61827.0,0.001638]
[1728054801292,0.25005686,61828.0,61827.0,0.001638]
[1728054801561,0.08831786,61828.0,61827.0,0.001638]
[1728054801796,0.20653716,61828.0,61827.0,0.001638]
[1728054802032,0.04476506,61828.0,61827.0,0.001638]
[1728054802490,0.01440548,61828.0,61827.0,0.001638]
[1728054802697,0.17914448,61828.0,61827.0,0.001638]
[1728054802965,0.17814448,61828.0,61827.0,0.001638]
[1728054803628,0.01640548,61828.0,61827.0,0.001638]
[1728054804062,0.01840548,61828.0,61827.0,0.001638]
[1728054804507,0.005,61828.0,61827.0,0.001638]
[1728054804963,0.002,61828.0,61827.0,0.001638]
[1728054805176,0.163739,61828.0,61827.0,0.001638]
[1728054805389,0.163739,61828.0,61827.0,0.002638]
[1728054805390,0.19709856,61828.0,61827.0,0.002638]
[1728054805615,0.19709856,61828.0,61827.0,0.001638]
[1728054805616,0.20049939,61828.0,61827.0,0.001638]
[1728054805862,0.20049939,61828.0,61823.0,0.00164]
[1728054805863,0.002,61826.0,61823.0,0.00164]
[1728054806098,0.44240632,61824.0,61823.0,0.00164]
[1728054806329,0.48080715,61824.0,61823.0,0.00164]
[1728054806562,0.67290715,61824.0,61823.0,0.00164]
[1728054807245,0.163759,61820.0,61819.0,0.00164]
[1728054807468,0.33015405,61820.0,61819.0,0.00164]
[1728054807698,0.19815983,61820.0,61819.0,0.00164]
[1728054807962,0.18712597,61820.0,61819.0,0.00164]
[1728054808202,0.30051317,61820.0,61819.0,0.00164]
[1728054808451,0.186762,61819.0,61811.0,0.0009947]
[1728054808688,0.46741932,61819.0,61807.0,0.24543893]
[1728054808993,0.64399323,61819.0,61807.0,0.24543893]
[1728054809465,0.48080652,61819.0,61807.0,0.24543893]
[1728054809967,0.45580652,61819.0,61807.0,0.24543893]
[1728054810213,0.48080652,61819.0,61807.0,0.24543893]
[1728054810434,0.161767,61817.0,61807.0,0.24543893]
[1728054810577,0.34792915,61817.0,61807.0,0.24543893]
[1728054810803,0.52612915,61817.0,61807.0,0.24543893]
[1728054811022,0.52812915,61817.0,61807.0,0.24543893]
[1728054811433,0.3763542,61817.0,61807.0,0.24543893]
[1728054811656,0.3533542,61817.0,61807.0,0.24543893]
[1728054812059,0.36731572,61817.0,61807.0,0.24543893]
[1728054812324,0.35331572,61817.0,61807.0,0.24543893]
[1728054812694,0.36731572,61817.0,61807.0,0.24543893]
[1728054813020,0.39783896,61817.0,61807.0,0.24543893]
[1728054813267,0.43183896,61817.0,61807.0,0.24543893]
[1728054813673,0.42083896,61817.0,61807.0,0.24543893]
[1728054813884,0.40683896,61817.0,61807.0,0.24543893]
[1728054814091,0.41683896,61817.0,61807.0,0.24543893]
[1728054814344,0.184793,61807.0,61806.0,0.0009982]
[1728054814610,0.20014172,61807.0,61806.0,0.0009982]
[1728054814836,0.184796,61806.0,61802.0,0.001638]
[1728054815063,0.19814472,61806.0,61802.0,0.001638]
[1728054815274,0.17514472,61806.0,61802.0,0.001638]
[1728054815483,0.23488993,61806.0,61802.0,0.001638]
[1728054816184,0.23488993,61806.0,61794.0,0.002621]
[1728054816185,0.184814,61799.0,61794.0,0.002621]
[1728054816408,0.184814,61799.0,61781.0,0.24543893]
[1728054816409,0.161851,61785.0,61782.0,0.24543893]
[1728054816663,0.50441204,61785.0,61782.0,0.24543893]
[1728054816912,0.65279282,61785.0,61765.0,0.001642]
[1728054817362,0.65279282,61785.0,61775.0,0.24543893]
[1728054818011,0.50424023,61785.0,61775.0,0.24543893]
[1728054818250,0.51724023,61785.0,61775.0,0.24543893]
[1728054818461,0.48124023,61785.0,61784.0,0.001752]
[1728054818880,0.73967916,61785.0,61784.0,0.001752]
[1728054819101,0.49624023,61785.0,61784.0,0.001752]
[1728054819323,0.65197165,61785.0,61784.0,0.001752]
[1728054819524,0.67697165,61785.0,61784.0,0.001752]
[1728054819741,0.75297165,61785.0,61784.0,0.001752]
[1728054819950,0.76697165,61785.0,61784.0,0.001752]
[1728054820202,0.61824023,61785.0,61784.0,0.001752]
[1728054820410,0.60424023,61785.0,61784.0,0.001752]
[1728054820875,0.6048891,61785.0,61784.0,0.001752]
[1728054821080,0.60419379,61785.0,61784.0,0.001752]
[1728054821326,0.61754866,61785.0,61784.0,0.001752]
[1728054821572,0.77661093,61785.0,61784.0,0.001752]
[1728054821802,0.22789134,61785.0,61784.0,0.001752]
[1728054822096,0.19989134,61785.0,61784.0,0.001752]
[1728054822307,0.05273565,61785.0,61784.0,0.001752]
[1728054822536,0.21458665,61785.0,61784.0,0.001752]
[1728054822974,0.20458665,61785.0,61784.0,0.001752]
[1728054823442,0.20558665,61785.0,61784.0,0.001752]
[1728054823657,0.03973565,61785.0,61784.0,0.001752]
[1728054823895,0.03973565,61785.0,61784.0,0.163606]
[1728054823896,0.03538078,61785.0,61784.0,0.163606]
[1728054824404,0.03538078,61785.0,61784.0,0.001752]
[1728054824621,0.03438078,61785.0,61784.0,0.001752]
[1728054825061,0.04538078,61785.0,61784.0,0.001752]
[1728054825284,0.04538078,61785.0,61784.0,0.163606]
[1728054825285,0.02538078,61785.0,61784.0,0.163606]
[1728054825516,0.03438078,61785.0,61784.0,0.001752]
[1728054825759,0.19123178,61785.0,61784.0,0.001752]
[1728054825972,0.18723178,61785.0,61784.0,0.001752]
[1728054826194,0.20558184,61785.0,61784.0,0.001752]
[1728054826426,0.23438094,61785.0,61784.0,0.002752]
[1728054826646,0.20158184,61785.0,61784.0,0.002752]
[1728054826860,0.20058184,61785.0,61784.0,0.001752]
[1728054827299,0.20058184,61785.0,61784.0,0.002752]
[1728054827535,0.18723178,61785.0,61784.0,0.002752]
[1728054827756,0.32463819,61785.0,61784.0,0.002752]
[1728054828220,0.32863819,61785.0,61784.0,0.002752]
[1728054828482,0.32863819,61785.0,61784.0,0.001752]
[1728054828483,0.34199906,61785.0,61784.0,0.001752]
[1728054828706,0.43799906,61785.0,61784.0,0.001752]
[1728054828931,0.44099906,61785.0,61784.0,0.001752]
[1728054829140,0.46399906,61785.0,61784.0,0.001752]
[1728054829606,0.47299906,61785.0,61784.0,0.001752]
[1728054829834,0.33159265,61785.0,61784.0,0.001752]
[1728054830088,0.30859265,61785.0,61784.0,0.001752]
[1728054830318,0.30059265,61785.0,61784.0,0.001752]
[1728054830981,0.28723178,61785.0,61784.0,0.001752]
[1728054831398,0.30057861,61785.0,61784.0,0.001752]